[Event "Romanian-ch Youth Girls U16 2024"]
[Site "Eforie Nord"]
[Date "2024.04.14"]
[Round "4.2"]
[White "Criveanu, Maria"]
[Black "Marcu, Daria-Ana"]
[Result "1-0"]
[ECO "B50"]
[WhiteElo "1762"]
[BlackElo "1744"]
[Annotator "NA RC"]
[PlyCount "90"]
[EventDate "2024.04.10"]
[EventType "swiss"]
[EventCountry "ROU"]
[SourceTitle "playchess.com"]
[Source "ChessBase"]
[SourceQuality "1"]
[TimeControl "5400+30"]

1. e4 {[%emt 0:00:03]} c5 {[%emt 0:00:08]} 2. Nf3 {[%emt 0:00:06]} d6 {[%emt 0:00:05]} 3. c3 {[%emt 0:00:13]} Nf6 {[%emt 0:00:18]} 4. Bd3 {[%emt 0:00:10]} Nc6 {[%emt 0:00:19]} 5. h3 {[%emt 0:00:38]} g6 {[%emt 0:00:25]} 6. O-O {[%emt 0:03:21]} Bg7 {[%emt 0:01:51]} 7. Re1 {[%emt 0:02:14]} O-O {[%emt 0:00:45]} 8. Bf1 {[%emt 0:01:53]} e5 {[%emt 0:00:52]} 9. d3 {[%emt 0:05:29]} h6 {[%emt 0:01:15]} 10. a4 {[%emt 0:05:13]} Re8 {[%emt 0:01:05]} 11. Na3 {[%emt 0:00:51]} Rb8 {[%emt 0:07:56]} 12. Nc4 {[%emt 0:04:27]} a6 {[%emt 0:01:34]} 13. Qc2 {[%emt 0:12:05]} b5 {[%emt 0:08:38]} 14. axb5 {[%emt 0:02:32]} axb5 {[%emt 0:00:08]} 15. Ne3 {[%emt 0:01:17]} Be6 {[%emt 0:03:10]} 16. d4 {[%emt 0:09:57]} exd4 {[%emt 0:01:32]} 17. cxd4 {[%emt 0:00:09]} Nxd4 {[%emt 0:14:28]} 18. Nxd4 {[%emt 0:00:27]} cxd4 {[%emt 0:00:06]} 19. Nd1 {[%emt 0:01:50]} Nd7 {[%emt 0:02:00]} 20. Bf4 {[%emt 0:05:46]} Qb6 {[%emt 0:02:06]} 21. Qd2 {[%emt 0:03:45]} Nc5 {[%emt 0:06:17]} 22. Qb4 {[%emt 0:03:52]} g5 {[%emt 0:12:50]} 23. Bh2 {[%emt 0:02:41]} Be5 {[%emt 0:02:24]} 24. Ra3 {[%emt 0:10:38]} Bd7 {[%emt 0:05:57]} 25. f3 {[%emt 0:02:31]} Ra8 {[%emt 0:02:34]} 26. Nf2 {[%emt 0:04:12]} Rxa3 {[%emt 0:02:41]} 27. bxa3 {[%emt 0:01:26]} Ra8 {[%emt 0:02:24]} 28. Rb1 {[%emt 0:06:03]} Ra4 {[%emt 0:09:19]} 29. Qb2 {[%emt 0:00:28]} Ra5 {[%emt 0:02:47]} 30. Ng4 {[%emt 0:05:03]} Bxg4 {[%emt 0:00:26]} 31. hxg4 {[%emt 0:00:16]} Na4 {[%emt 0:01:13]} 32. Qb3 {[%emt 0:00:47]} Nc3 {[%emt 0:00:19]} 33. Ra1 {[%emt 0:01:20]} d3+ {[%emt 0:03:05]} 34. Kh1 {[%emt 0:00:12]} d2 {[%emt 0:00:20]} 35. Bxe5 {[%emt 0:02:29]} d1=Q {[%emt 0:00:09]} 36. Rxd1 {[%emt 0:00:07]} Nxd1 {[%emt 0:00:13]} 37. Ba1 {[%emt 0:03:50]} Ne3 {[%emt 0:01:07]} 38. Qc3 {[%emt 0:00:29]} Kf8 {[%emt 0:01:31]} 39. Qg7+ {[%emt 0:00:33]} Ke8 {[%emt 0:01:37]} 40. Bd4 {[%emt 0:00:17]} Qc6 {[%emt 0:01:47]} 41. Bxe3 {[%emt 0:00:19]} Rxa3 {[%emt 0:01:55]} 42. Qh8+ {[%emt 0:00:34]} Kd7 {[%emt 0:00:30]} 43. Qb2 {[%emt 0:00:39]} b4 {[%emt 0:01:08]} 44. Bd2 {[%emt 0:00:45]} Qb6 {[%emt 0:00:38]} 45. Bc4 {[%emt 0:01:03]} Ke7 {[%emt 0:01:08]} 1-0

[Event "Romanian-ch Youth Girls U16 2024"]
[Site "Eforie Nord"]
[Date "2024.04.15"]
[Round "5.1"]
[White "Rusu, Anastasia"]
[Black "Criveanu, Maria"]
[Result "1/2-1/2"]
[ECO "C54"]
[WhiteElo "1590"]
[BlackElo "1762"]
[Annotator "NA RC"]
[PlyCount "84"]
[EventDate "2024.04.10"]
[EventType "swiss"]
[EventCountry "ROU"]
[SourceTitle "playchess.com"]
[Source "ChessBase"]
[SourceQuality "1"]
[TimeControl "5400+30"]

1. e4 {[%emt 0:00:04]} e5 {[%emt 0:00:05]} 2. Nf3 {[%emt 0:00:05]} Nc6 {[%emt 0:00:06]} 3. Bc4 {[%emt 0:00:04]} Bc5 {[%emt 0:00:06]} 4. c3 {[%emt 0:00:19]} Nf6 {[%emt 0:00:34]} 5. d3 {[%emt 0:00:08]} d6 {[%emt 0:01:47]} 6. O-O {[%emt 0:00:55]} h6 {[%emt 0:00:30]} 7. h3 {[%emt 0:00:51]} O-O {[%emt 0:01:19]} 8. Re1 {[%emt 0:01:50]} a5 {[%emt 0:01:37]} 9. Nbd2 {[%emt 0:01:34]} Ba7 {[%emt 0:01:08]} 10. Nf1 {[%emt 0:01:51]} Ne7 {[%emt 0:01:35]} 11. Be3 {[%emt 0:02:52]} Ng6 {[%emt 0:02:09]} 12. Bxa7 {[%emt 0:03:28]} Rxa7 {[%emt 0:00:08]} 13. d4 {[%emt 0:07:33]} Qe7 {[%emt 0:09:30]} 14. Ng3 {[%emt 0:04:45]} Nf4 {[%emt 0:05:22]} 15. Nh4 {[%emt 0:11:25]} Nxe4 {[%emt 0:16:15]} 16. Nhf5 {[%emt 0:13:15]} Bxf5 {[%emt 0:01:33]} 17. Nxf5 {[%emt 0:00:05]} Qg5 {[%emt 0:01:15]} 18. Qg4 {[%emt 0:04:40]} Qxg4 {[%emt 0:01:18]} 19. hxg4 {[%emt 0:00:02]} Nd2 {[%emt 0:04:22]} 20. Bb5 {[%emt 0:02:27]} c6 {[%emt 0:02:11]} 21. Rad1 {[%emt 0:04:22]} exd4 {[%emt 0:10:25]} 22. Nxd4 {[%emt 0:02:03]} cxb5 {[%emt 0:05:49]} 23. Rxd2 {[%emt 0:02:53]} b4 {[%emt 0:02:30]} 24. c4 {[%emt 0:05:37]} Ra6 {[%emt 0:07:38]} 25. Nf5 {[%emt 0:07:56]} Rd8 {[%emt 0:09:44]} 26. Red1 {[%emt 0:02:35]} Kf8 {[%emt 0:01:59]} 27. Nxd6 {[%emt 0:10:50]} Rd7 {[%emt 0:01:39]} 28. b3 {[%emt 0:02:08]} g6 {[%emt 0:05:48]} 29. Kf1 {[%emt 0:02:22]} a4 {[%emt 0:02:39]} 30. g3 {[%emt 0:01:59]} Ne6 {[%emt 0:00:24]} 31. Nb5 {[%emt 0:00:51]} Rxd2 {[%emt 0:00:26]} 32. Rxd2 {[%emt 0:00:01]} axb3 {[%emt 0:01:55]} 33. axb3 {[%emt 0:00:09]} Nc5 {[%emt 0:00:15]} 34. Rb2 {[%emt 0:03:37]} Ra1+ {[%emt 0:00:43]} 35. Ke2 {[%emt 0:00:51]} Ke7 {[%emt 0:00:46]} 36. Nc7 {[%emt 0:00:45]} Ra3 {[%emt 0:00:43]} 37. Nd5+ {[%emt 0:00:11]} Kd6 {[%emt 0:00:41]} 38. Nxb4 {[%emt 0:00:35]} Nxb3 {[%emt 0:00:46]} 39. Nc2 {[%emt 0:01:01]} Nc1+ {[%emt 0:00:46]} 40. Kd2 {[%emt 0:00:50]} Nd3 {[%emt 0:01:21]} 41. Ke2 {[%emt 0:01:11]} Ke5 42. Kd2 {[%emt 0:00:30]} Kd6 1/2-1/2

[Event "Romanian-ch Youth Girls U16 2024"]
[Site "Eforie Nord"]
[Date "2024.04.15"]
[Round "5.2"]
[White "Dumitrache, Elisa-Andreea"]
[Black "Maria, Lia-Alexandra"]
[Result "1-0"]
[ECO "B96"]
[WhiteElo "1613"]
[BlackElo "1924"]
[Annotator "NA RC"]
[PlyCount "87"]
[EventDate "2024.04.10"]
[EventType "swiss"]
[EventCountry "ROU"]
[SourceTitle "playchess.com"]
[Source "ChessBase"]
[SourceQuality "1"]
[TimeControl "5400+30"]

1. e4 {[%emt 0:00:02]} c5 {[%emt 0:00:05]} 2. Nf3 {[%emt 0:00:19]} d6 {[%emt 0:00:05]} 3. d4 {[%emt 0:00:10]} Nf6 {[%emt 0:00:20]} 4. Nc3 {[%emt 0:04:22]} cxd4 {[%emt 0:00:05]} 5. Nxd4 {[%emt 0:00:15]} a6 {[%emt 0:00:13]} 6. Bg5 {[%emt 0:00:55]} Nbd7 {[%emt 0:01:51]} 7. f4 {[%emt 0:18:19]} e6 {[%emt 0:01:04]} 8. Qf3 {[%emt 0:00:38]} Qc7 {[%emt 0:00:12]} 9. O-O-O {[%emt 0:03:48]} b5 {[%emt 0:04:26]} 10. Bxf6 {[%emt 0:22:07]} Nxf6 {[%emt 0:04:20]} 11. Bd3 {[%emt 0:09:23]} Bb7 {[%emt 0:02:13]} 12. g4 {[%emt 0:03:35]} Be7 {[%emt 0:05:31]} 13. Rhe1 {[%emt 0:05:35]} Nd7 {[%emt 0:16:43]} 14. Qg3 {[%emt 0:10:08]} b4 {[%emt 0:05:42]} 15. Nb1 {[%emt 0:01:50]} Qb6 {[%emt 0:07:37]} 16. Bc4 {[%emt 0:03:30]} Bf6 {[%emt 0:08:17]} 17. Nb3 {[%emt 0:05:30]} Rc8 {[%emt 0:02:01]} 18. Qd3 {[%emt 0:00:56]} O-O {[%emt 0:08:39]} 19. g5 {[%emt 0:02:15]} Be7 {[%emt 0:00:39]} 20. h4 {[%emt 0:00:39]} Qc7 {[%emt 0:04:33]} 21. N1d2 {[%emt 0:00:58]} Nb6 {[%emt 0:00:54]} 22. Na5 {[%emt 0:00:38]} d5 {[%emt 0:00:40]} 23. exd5 {[%emt 0:01:39]} Nxc4 {[%emt 0:00:47]} 24. Naxc4 {[%emt 0:02:01]} Bxd5 {[%emt 0:01:07]} 25. b3 {[%emt 0:00:15]} Qxf4 {[%emt 0:00:30]} 26. Nb6 {[%emt 0:01:33]} Rcd8 {[%emt 0:00:42]} 27. Nxd5 {[%emt 0:00:33]} Rxd5 {[%emt 0:00:05]} 28. Qe4 {[%emt 0:00:37]} Bd6 {[%emt 0:01:12]} 29. Rf1 {[%emt 0:01:02]} Qe5 {[%emt 0:01:04]} 30. Qxe5 {[%emt 0:00:23]} Bxe5 {[%emt 0:00:14]} 31. Nc4 {[%emt 0:00:03]} Rxd1+ {[%emt 0:01:29]} 32. Rxd1 {[%emt 0:00:03]} h6 {[%emt 0:00:44]} 33. Nxe5 {[%emt 0:00:13]} hxg5 {[%emt 0:01:50]} 34. hxg5 {[%emt 0:00:04]} f6 {[%emt 0:00:18]} 35. Nd7 {[%emt 0:01:12]} Rf7 {[%emt 0:00:21]} 36. g6 {[%emt 0:00:39]} Re7 {[%emt 0:00:14]} 37. Nc5 {[%emt 0:00:21]} Re8 {[%emt 0:00:38]} 38. Nxe6 {[%emt 0:00:23]} f5 {[%emt 0:00:41]} 39. Rd7 {[%emt 0:00:40]} f4 {[%emt 0:00:13]} 40. Rxg7+ {[%emt 0:00:36]} Kh8 {[%emt 0:00:04]} 41. Rh7+ {[%emt 0:00:24]} Kg8 {[%emt 0:00:04]} 42. Nxf4 {[%emt 0:01:10]} a5 {[%emt 0:00:34]} 43. Nd5 {[%emt 0:00:27]} Re6 {[%emt 0:00:38]} 44. Ne7+ {[%emt 0:00:36]} 1-0

[Event "Romanian-ch Youth Girls U16 2024"]
[Site "Eforie Nord"]
[Date "2024.04.16"]
[Round "6.1"]
[White "Criveanu, Maria"]
[Black "Pandelescu, Maria-Catalina"]
[Result "0-1"]
[ECO "B31"]
[WhiteElo "1762"]
[BlackElo "1730"]
[Annotator "NA RC"]
[PlyCount "83"]
[EventDate "2024.04.10"]
[EventType "swiss"]
[EventCountry "ROU"]
[SourceTitle "playchess.com"]
[Source "ChessBase"]
[SourceQuality "1"]
[TimeControl "5400+30"]

1. e4 {[%emt 0:00:02]} c5 {[%emt 0:00:09]} 2. Nf3 {[%emt 0:00:07]} Nc6 {[%emt 0:00:16]} 3. Bb5 {[%emt 0:00:21]} g6 {[%emt 0:01:03]} 4. O-O {[%emt 0:00:21]} Bg7 {[%emt 0:00:46]} 5. c3 {[%emt 0:00:23]} a6 {[%emt 0:02:21]} 6. Bxc6 {[%emt 0:03:55]} bxc6 {[%emt 0:00:58]} 7. d4 {[%emt 0:01:40]} cxd4 {[%emt 0:01:13]} 8. cxd4 {[%emt 0:00:22]} d5 {[%emt 0:00:51]} 9. e5 {[%emt 0:01:12]} Bg4 {[%emt 0:04:01]} 10. h3 {[%emt 0:03:20]} Bxf3 {[%emt 0:00:40]} 11. Qxf3 {[%emt 0:00:12]} e6 {[%emt 0:00:57]} 12. Qc3 {[%emt 0:11:01]} Qb6 {[%emt 0:03:55]} 13. b3 {[%emt 0:09:08]} f6 {[%emt 0:07:32]} 14. exf6 {[%emt 0:10:43]} Nxf6 {[%emt 0:00:47]} 15. Qe3 {[%emt 0:04:39]} O-O {[%emt 0:11:41]} 16. Ba3 {[%emt 0:11:31]} Rfe8 {[%emt 0:05:07]} 17. Nd2 {[%emt 0:06:30]} Nd7 {[%emt 0:09:15]} 18. Nf3 {[%emt 0:01:56]} e5 {[%emt 0:04:53]} 19. Rae1 {[%emt 0:09:28]} e4 {[%emt 0:05:45]} 20. Bc5 {[%emt 0:04:28]} Nxc5 {[%emt 0:01:00]} 21. dxc5 {[%emt 0:00:07]} Qb4 {[%emt 0:00:56]} 22. Nh2 {[%emt 0:02:43]} Bd4 {[%emt 0:03:00]} 23. Qg5 {[%emt 0:01:09]} Qxc5 {[%emt 0:01:04]} 24. Rc1 {[%emt 0:03:04]} Qd6 {[%emt 0:02:42]} 25. Ng4 {[%emt 0:01:18]} Rf8 {[%emt 0:03:01]} 26. Rc2 {[%emt 0:13:50]} Rac8 {[%emt 0:05:42]} 27. Rfc1 {[%emt 0:00:00]} Bg7 {[%emt 0:02:29]} 28. Ne3 {[%emt 0:00:00]} d4 {[%emt 0:02:16]} 29. Nc4 {[%emt 0:00:00]} Qe6 {[%emt 0:06:54]} 30. Nb6 {[%emt 0:00:00]} Rf5 {[%emt 0:01:20]} 31. Qh4 {[%emt 0:00:55]} Bf6 {[%emt 0:02:34]} 32. Qg3 {[%emt 0:00:25]} d3 {[%emt 0:03:48]} 33. Rd2 {[%emt 0:01:38]} Rd8 {[%emt 0:01:31]} 34. Qc7 {[%emt 0:00:26]} Qd6 {[%emt 0:01:05]} 35. Rxc6 {[%emt 0:00:28]} Qxc7 {[%emt 0:00:05]} 36. Rxc7 {[%emt 0:00:03]} Bg5 {[%emt 0:00:35]} 37. Rd1 {[%emt 0:00:14]} e3 {[%emt 0:00:18]} 38. fxe3 {[%emt 0:00:46]} Bxe3+ {[%emt 0:00:08]} 39. Kh1 {[%emt 0:00:07]} Bxb6 {[%emt 0:00:10]} 40. Rc6 {[%emt 0:00:26]} Be3 {[%emt 0:01:41]} 41. Rxa6 {[%emt 0:00:14]} Rc5 {[%emt 0:00:24]} 42. Ra5 {[%emt 0:02:18]} 0-1

[Event "Romanian-ch Youth Girls U16 2024"]
[Site "Eforie Nord"]
[Date "2024.04.16"]
[Round "6.2"]
[White "Maria, Lia-Alexandra"]
[Black "Marcu, Daria-Ana"]
[Result "1-0"]
[ECO "A53"]
[WhiteElo "1924"]
[BlackElo "1744"]
[Annotator "TA"]
[PlyCount "87"]
[EventDate "2024.04.10"]
[EventType "swiss"]
[EventCountry "ROU"]
[SourceTitle "playchess.com"]
[Source "ChessBase"]
[SourceQuality "1"]
[TimeControl "5400+30"]

{[%evp 9,87,35,62,74,77,72,64,67,82,68,73,73,78,73,102,97,145,149,130,95,111,88,83,86,73,75,90,84,175,179,179,160,178,139,132,79,93,82,85,93,114,82,82,82,82,82,100,109,136,33,48,10,15,25,197,87,212,89,360,260,259,241,244,189,225,231,216,234,29984,29979,29977,29979,29978,29978,29985,29983,29990,29983,29992,29993]} 1. Nf3 {[%emt 0:00:10]} Nf6 {[%emt 0:00:16]} 2. c4 {[%emt 0:00:09]} c5 {[%emt 0:00:10]} 3. Nc3 {[%emt 0:00:52]} d6 {[%emt 0:01:16]} 4. d4 {[%emt 0:00:19]} cxd4 {[%emt 0:00:12]} 5. Nxd4 {[%emt 0:00:06]} Nbd7 {[%emt 0:00:48]} 6. e4 {[%emt 0:01:53]} g6 {[%emt 0:00:33]} 7. Be2 {[%emt 0:01:28]} Bg7 {[%emt 0:01:25]} 8. Be3 {[%emt 0:02:19] White is slightly better.} b6 {[%emt 0:06:52]} 9. O-O {[%emt 0:02:23] White is more active.} Bb7 {[%emt 0:00:21]} 10. f3 {[%emt 0:01:28]} Rc8 {[%emt 0:00:53]} 11. Rc1 {[%emt 0:02:27]} h6 {[%emt 0:16:42]} 12. Qd2 {[%emt 0:03:50]} Ne5 {[%emt 0:00:42]} ({Black should play} 12... h5) 13. Nd5 $1 $16 {[%emt 0:05:41]} Nc6 {[%emt 0:06:47]} 14. Nxf6+ {[%emt 0:08:55]} Bxf6 {[%emt 0:00:22]} 15. Nxc6 {[%emt 0:00:55]} Bxc6 {[%emt 0:02:52]} 16. Bxh6 {[%emt 0:02:51]} Rxh6 {[%emt 0:08:59]} 17. Qxh6 {[%emt 0:00:50]} Bd4+ {[%emt 0:00:11] A strong pair of Bishops.} 18. Kh1 {[%emt 0:00:20] Black must now prevent b3.} e6 {[%emt 0:00:58]} (18... Bxb2 $16 19. Rb1 Bf6) 19. Qd2 $18 {[%emt 0:14:33]} Qf6 {[%emt 0:01:02]} 20. b4 {[%emt 0:01:47]} Ke7 {[%emt 0:01:19]} 21. Rcd1 {[%emt 0:11:31]} e5 {[%emt 0:01:46]} 22. Qc1 {[%emt 0:10:37]} (22. h3 $142) 22... Rh8 {[%emt 0:01:24][%cal Oh8h2]} 23. g3 {[%emt 0:00:52]} Bd7 {[%emt 0:05:37][%cal Oh8h2] [#] ( -> ...Rxh2+!)} 24. Rxd4 $1 {[%emt 0:01:38]} exd4 {[%emt 0:01:59]} 25. Rf2 {[%emt 0:08:29]} Qe5 {[%emt 0:06:26]} 26. Kg1 $36 {[%emt 0:01:08][%mdl 2048] White has strong initiative.} Rc8 {[%emt 0:01:38]} 27. Bd3 {[%emt 0:04:21]} b5 {[%emt 0:04:41] ...bxc4 is the strong threat.} 28. Rc2 {[%emt 0:01:22]} Qh5 {[%emt 0:10:11]} 29. Qf1 {[%emt 0:01:23]} ({White should try} 29. g4 $16 Qe5 30. c5 dxc5 31. bxc5 (31. Rxc5 Rxc5 32. Qxc5+ Qxc5 $16)) 29... a5 $1 $14 {[%emt 0:08:34]} 30. a3 {[%emt 0:02:26][%cal Rc4b5]} axb4 {[%emt 0:04:36]} 31. axb4 {[%emt 0:00:27][%cal Rc4b5]} Ra8 $2 {[%emt 0:00:32]} (31... bxc4 $1 $11 32. Rxc4 (32. Bxc4 Bb5 $11) 32... Ra8) 32. c5 {[%emt 0:00:50]} (32. cxb5 $18 {b6 would now be deadly.} Ra4 33. Rb2) 32... Bh3 {[%emt 0:00:38]} (32... dxc5 $16 33. Rxc5 (33. Bxb5 d3 $11) 33... Bh3) 33. Qd1 {[%emt 0:02:26]} (33. cxd6+ $18 {is the precise move to win.} Kf8 34. Qd1) 33... Qh6 $2 {[%emt 0:00:58][%mdl 8192]} (33... dxc5 $16 {keeps fighting.} 34. Rxc5 Ra1 35. Rc7+ (35. Qxa1 Qxf3 36. Rc2 Qxd3 $14) 35... Kd8 36. Qxa1 (36. Rxf7 Rxd1+ 37. Kf2 Rxd3 38. Rf4 Rd2+ 39. Kg1 d3 40. Rf8+ Ke7 41. Rg8 Qxf3 42. Rg7+ Kf8) 36... Qxf3 37. Qxd4+ (37. Rc2 Qxd3 38. Qa8+ Ke7 $11) 37... Kxc7 38. Qc5+ (38. Bxb5 $2 Qg2#) 38... Kb7 39. Qxb5+ (39. Bxb5 $2 Qg2#) 39... Ka8 40. Qc6+ Kb8 41. Qb6+ Ka8 42. Qa6+ Kb8 43. Qb5+ Kc8 44. Qc6+ Kb8 45. Qb6+ Ka8 46. Qa5+ Kb8 47. Qb6+) 34. f4 {[%emt 0:00:30]} (34. Bxb5 $2 Qe3+ 35. Kh1 d3 36. Bxd3 (36. cxd6+ Kf8 37. Bxd3 Qxd3 38. Rc1 Qe3 39. Qc2 Ra2 40. d7 Rxc2 41. d8=Q+ Kg7) 36... Qxd3 $19) 34... dxc5 {[%emt 0:00:55]} 35. Rxc5 {[%emt 0:00:52]} (35. Bxb5 d3 36. Qxd3 (36. Bxd3 $2 Qh8 $19) (36. Rxc5 Ra2 $11) 36... Ra1+ 37. Kf2 Rf1+ 38. Ke3 g5 $11) 35... Ra2 {[%emt 0:03:09]} 36. Bc2 {[%emt 0:02:22]} (36. Bxb5 $2 Rg2+ 37. Kh1 Rxh2+ 38. Kxh2 Bg4+ 39. Kg1 Bxd1 $19) 36... Qh8 {[%emt 0:01:03] [#]} 37. Re5+ $1 {[%emt 0:00:47]} (37. Rxb5 Qc8 38. Rc5 Qa6 $17) 37... Be6 {[%emt 0:00:35]} 38. Qxd4 $1 {[%emt 0:01:27]} ({Weaker is} 38. Rxb5 Qa8 39. Qd3 Bh3 $11) 38... f6 $2 {[%emt 0:01:31] [#]} (38... Rxc2 $2 {is the wrong capture.} 39. Rxe6+ Kxe6 40. Qxh8 $18) (38... Kf8 $18) 39. Rxe6+ $1 {[%emt 0:00:12] White mates.} Kxe6 {[%emt 0:00:15]} 40. Bb3+ {[%emt 0:00:05]} Ke7 {[%emt 0:00:09][%cal Be6e7,Be7d8,Bd8c8][%mdl 32]} 41. Qc5+ {[%emt 0:00:12]} Kd8 {[%emt 0:00:29]} 42. Bxa2 {[%emt 0:00:11]} f5 {[%emt 0:00:27]} 43. Qd5+ {[%emt 0:00:30]} Kc8 {[%emt 0:00:18]} 44. Qa8+ {[%emt 0:00:04] Weighted Error Value: White=0.22 (precise) /Black=0.47.  Loses game:     	---       	Black=2      Mistake:       	White=4     	Black=4      Inaccurate:     	White=1     	Black=1      OK:         	White=10    	Black=9      Best:        	---       	Black=1      Strong:       	White=2     	Black=1      Brilliant:      	White=1     	---} 1-0

[Event "Romanian-ch Youth Girls U16 2024"]
[Site "Eforie Nord"]
[Date "2024.04.17"]
[Round "7.1"]
[White "Maria, Lia-Alexandra"]
[Black "Mohonea, Maria"]
[Result "1-0"]
[ECO "B48"]
[WhiteElo "1924"]
[BlackElo "1481"]
[Annotator "TA"]
[PlyCount "37"]
[EventDate "2024.04.10"]
[EventType "swiss"]
[EventCountry "ROU"]
[SourceTitle "playchess.com"]
[Source "ChessBase"]
[SourceQuality "1"]
[TimeControl "5400+30"]

{[%evp 11,37,29,49,31,36,22,60,41,87,81,67,73,73,84,147,146,141,141,187,148,289,208,425,413,403,408,1690,1332]} 1. e4 {[%emt 0:00:04]} c5 {[%emt 0:00:14]} 2. Nf3 {[%emt 0:00:05]} e6 {[%emt 0:00:08]} 3. d4 {[%emt 0:00:07]} cxd4 {[%emt 0:00:07]} 4. Nxd4 {[%emt 0:00:09]} Nc6 {[%emt 0:00:40]} 5. Nc3 {[%emt 0:00:09]} Qc7 {[%emt 0:00:23]} 6. Be3 {[%emt 0:00:20]} a6 {[%emt 0:00:13]} 7. Qf3 {[%emt 0:00:35]} Nf6 {[%emt 0:01:48][%cal Of8a3]} 8. O-O-O {[%emt 0:00:43]} Be7 {[%emt 0:04:21]} 9. Be2 {[%emt 0:03:05] White is slightly better.} b5 {[%emt 0:06:33] [#]} (9... d6 $14 {is superior.}) 10. e5 $1 $16 {[%emt 0:09:16]} Bb7 {[%emt 0:20:33][%cal Bc8b7,Bb7c6,Bc6d5][%mdl 32] Strongly threatening ...Nxd4.} 11. Nxc6 {[%emt 0:03:16]} ({But not} 11. exf6 $6 Nxd4 12. fxg7 Rg8 $15) 11... Bxc6 {[%emt 0:00:21]} 12. Qg3 $36 {[%emt 0:00:33][%mdl 2048] White is on the roll. White is more active.} Nd5 {[%emt 0:04:12]} (12... Ne4 $142 13. Qxg7 Rf8) 13. Nxd5 {[%emt 0:07:11]} Bxd5 {[%emt 0:00:26]} 14. Qxg7 {[%emt 0:00:36]} O-O-O {[%emt 0:01:11] Black is weak on the dark squares} (14... Rf8 $16) 15. Qxf7 {[%emt 0:03:13]} Bb4 {[%emt 0:01:04]} (15... Bc5 $16) 16. a3 {[%emt 0:03:02]} Ba5 $2 {[%emt 0:00:59] [#]} (16... Bc5 {was worth a try.} 17. Bh6 Rhg8) 17. Rxd5 $3 $18 {[%emt 0:01:14][%mdl 512]} exd5 {[%emt 0:00:32]} 18. Qxd5 {[%emt 0:00:07] And now Qa8+ would win.} Rde8 {[%emt 0:05:42]} (18... Qc6 $142 19. Rd1 (19. Qxc6+ dxc6 20. Bd3 c5 $18) 19... Rhg8) 19. Qa8+ {[%emt 0:00:17] White took control after the opening.   Weighted Error Value: White=0.20 (precise) /Black=0.71.  Mistake:       	---       	Black=6      Inaccurate:     	---       	Black=1      OK:         	White=5     	Black=1      Best:        	White=1     	Black=1      Brilliant:      	White=1     	---} 1-0

[Event "Romanian-ch Youth Girls U16 2024"]
[Site "Eforie Nord"]
[Date "2024.04.17"]
[Round "7.2"]
[White "Pandelescu, Maria-Catalina"]
[Black "Rusu, Anastasia"]
[Result "0-1"]
[ECO "D26"]
[WhiteElo "1730"]
[BlackElo "1590"]
[Annotator "NA RC COMBH"]
[PlyCount "94"]
[EventDate "2024.04.10"]
[EventType "swiss"]
[EventCountry "ROU"]
[SourceTitle "playchess.com"]
[Source "ChessBase"]
[SourceQuality "1"]
[TimeControl "5400+30"]

1. e4 {[%emt 0:00:03]} c6 {[%emt 0:00:09]} 2. c4 {[%emt 0:00:13]} d5 {[%emt 0:01:21]} 3. exd5 {[%emt 0:00:25]} cxd5 {[%emt 0:00:10]} 4. cxd5 {[%emt 0:00:08]} Qxd5 {[%emt 0:00:16]} 5. Nc3 {[%emt 0:00:35]} Qd8 {[%emt 0:01:25]} 6. d4 {[%emt 0:01:11]} e6 {[%emt 0:01:57]} 7. Nf3 {[%emt 0:02:06]} Nf6 {[%emt 0:02:44]} 8. Bc4 {[%emt 0:03:00]} Be7 {[%emt 0:03:31]} 9. O-O {[%emt 0:02:30]} O-O {[%emt 0:00:12]} 10. Bf4 {[%emt 0:02:44]} a6 {[%emt 0:03:02]} 11. a4 {[%emt 0:05:42]} Nbd7 {[%emt 0:10:03]} 12. Ne5 {[%emt 0:08:12]} Nb6 {[%emt 0:08:56]} 13. Bb3 {[%emt 0:05:36]} Nbd5 {[%emt 0:07:16]} 14. Bg3 {[%emt 0:03:22]} Nxc3 {[%emt 0:09:52]} 15. bxc3 {[%emt 0:00:16]} Ne4 {[%emt 0:00:46]} 16. Qd3 {[%emt 0:04:44]} Nxg3 {[%emt 0:01:18]} 17. Qxg3 {[%emt 0:00:17]} Bd6 {[%emt 0:03:25]} 18. Qe3 {[%emt 0:02:09]} Qc7 {[%emt 0:02:44]} 19. h3 {[%emt 0:05:13]} b6 {[%emt 0:07:32]} 20. Nf3 {[%emt 0:06:07]} Bb7 {[%emt 0:02:34]} 21. c4 {[%emt 0:04:56]} Rfe8 {[%emt 0:05:19]} 22. Rfe1 {[%emt 0:12:23]} Rad8 {[%emt 0:04:34]} 23. Qc3 {[%emt 0:07:05]} Qe7 {[%emt 0:05:37]} 24. Qe3 {[%emt 0:03:35]} Qc7 {[%emt 0:02:12]} 25. Re2 {[%emt 0:03:43]} Bf4 {[%emt 0:00:47]} 26. Qc3 {[%emt 0:01:21]} Bxf3 {[%emt 0:01:44]} 27. Qxf3 {[%emt 0:03:52]} Rxd4 {[%emt 0:03:20]} 28. g3 {[%emt 0:01:56]} Be5 {[%emt 0:02:00]} 29. Rc1 {[%emt 0:01:43]} Red8 {[%emt 0:02:02]} 30. Qh5 {[%emt 0:02:07]} Bxg3 {[%emt 0:03:30]} 31. fxg3 {[%emt 0:03:21]} Qxg3+ {[%emt 0:00:17]} 32. Rg2 {[%emt 0:00:46]} Qe3+ {[%emt 0:02:08]} 33. Kh2 {[%emt 0:02:05]} Qf4+ {[%emt 0:00:40]} 34. Kh1 {[%emt 0:00:20]} Qxc1+ {[%emt 0:00:14]} 35. Rg1 {[%emt 0:00:37]} Qf4 {[%emt 0:02:53]} 36. Rg2 {[%emt 0:02:40]} f5 {[%emt 0:01:09]} 37. c5 {[%emt 0:00:38]} Qe5 {[%emt 0:00:44]} 38. cxb6 {[%emt 0:00:57]} Rb8 {[%emt 0:00:32]} 39. a5 {[%emt 0:00:25]} g6 {[%emt 0:00:30]} 40. Qg5 {[%emt 0:00:51]} Rd7 {[%emt 0:00:28]} 41. Qc1 {[%emt 0:00:28]} Rd3 {[%emt 0:00:32]} 42. Rh2 {[%emt 0:00:35]} Rxb3 {[%emt 0:00:20]} 43. h4 {[%emt 0:00:22]} Qxa5 {[%emt 0:00:40]} 44. h5 {[%emt 0:00:26]} Qd5+ {[%emt 0:00:22]} 45. Kg1 {[%emt 0:00:28]} Rg3+ {[%emt 0:00:28]} 46. Kf1 {[%emt 0:00:29]} Qf3+ {[%emt 0:00:16]} 47. Rf2 {[%emt 0:00:12]} Qh1+ {[%emt 0:00:11]} 0-1